[Event "Memorial Zita 2019"]
[Site "Prague"]
[Date "2019.06.24"]
[Round "4.2"]
[White "Vokoun, Jan"]
[Black "Kiss, Pal"]
[Result "1/2-1/2"]
[ECO "B21"]
[WhiteElo "2072"]
[BlackElo "2278"]
[Annotator "NA"]
[PlyCount "50"]
[EventDate "2019.06.23"]
[EventType "tourn"]
[EventCountry "CZE"]
[SourceTitle "playchess.com"]
[Source "ChessBase"]
[SourceQuality "1"]
[TimeControl "5400+30"]

1. e4 {[%emt 1:30:30]} c5 {[%emt 1:30:30]} 2. f4 {[%emt 0:00:30]} d5 {[%emt 0:00:30]} 3. exd5 {[%emt 0:00:30]} Nf6 {[%emt 0:00:30]} 4. Bb5+ {[%emt 0:00:30]} Bd7 {[%emt 0:00:30]} 5. Bxd7+ {[%emt 0:00:30]} Qxd7 {[%emt 0:00:30]} 6. c4 {[%emt 0:00:30]} e6 {[%emt 0:00:30]} 7. Qe2 {[%emt 0:00:30]} Bd6 {[%emt 0:00:30]} 8. dxe6 {[%emt 0:00:30]} fxe6 {[%emt 0:00:30]} 9. d3 {[%emt 0:00:30]} O-O {[%emt 0:00:30]} 10. Nf3 {[%emt 0:00:30]} Nc6 {[%emt 0:00:30]} 11. Nc3 {[%emt 0:00:30]} e5 {[%emt 0:00:30]} 12. f5 {[%emt 0:00:30]} Nd4 {[%emt 0:00:30]} 13. Qd1 {[%emt 0:00:30]} Qxf5 {[%emt 0:00:30]} 14. O-O {[%emt 0:00:30]} Qh5 {[%emt 0:00:30]} 15. Ng5 {[%emt 0:00:30]} Qxd1 {[%emt 0:00:30]} 16. Rxd1 {[%emt 0:00:30]} Rad8 {[%emt 0:00:30]} 17. Rb1 {[%emt 0:00:30]} h6 {[%emt 0:00:30]} 18. Nge4 {[%emt 0:00:30]} Nxe4 {[%emt 0:00:30]} 19. Nxe4 {[%emt 0:00:30]} Ne2+ {[%emt 0:00:30]} 20. Kh1 {[%emt 0:00:30]} Be7 {[%emt 0:00:30]} 21. Be3 {[%emt 0:00:30]} b6 {[%emt 0:00:30]} 22. Rd2 {[%emt 0:00:30]} Nf4 {[%emt 0:00:30]} 23. Rbd1 {[%emt 0:00:30]} Rd7 {[%emt 0:00:30]} 24. g3 {[%emt 0:00:30]} Ne6 {[%emt 0:00:30]} 25. Kg2 {[%emt 0:00:30]} Rfd8 {[%emt 0:00:30]} 1/2-1/2

[Event "Memorial Zita 2019"]
[Site "Prague"]
[Date "2019.06.24"]
[Round "4.3"]
[White "Frolov, Artur"]
[Black "Fedorov, Evgueny"]
[Result "1/2-1/2"]
[ECO "C42"]
[WhiteElo "2453"]
[BlackElo "2250"]
[Annotator "ChessBase"]
[PlyCount "101"]
[EventDate "2019.06.23"]
[EventType "tourn"]
[EventCountry "CZE"]
[SourceTitle "playchess.com"]
[Source "ChessBase"]
[SourceQuality "1"]
[TimeControl "5400+30"]

1. e4 {[%emt 0:00:00]} e5 {[%emt 0:00:00]} 2. Nf3 {[%emt 0:00:00]} Nf6 {[%emt 0:00:00]} 3. Nxe5 {[%emt 0:00:00]} d6 {[%emt 0:00:00]} 4. Nf3 {[%emt 0:00:00]} Nxe4 {[%emt 0:00:00]} 5. d4 {[%emt 0:00:00]} d5 {[%emt 0:00:00]} 6. Bd3 {[%emt 0:00:19]} Nc6 {[%emt 0:00:25]} 7. O-O {[%emt 0:00:37]} Be7 {[%emt 0:00:22]} 8. c4 {[%emt 0:00:36]} Nb4 {[%emt 0:00:43]} 9. Be2 {[%emt 0:00:42]} O-O {[%emt 0:00:12]} 10. Nc3 {[%emt 0:00:54]} Bf5 {[%emt 0:00:31]} 11. a3 {[%emt 0:00:52]} Nxc3 {[%emt 0:00:23]} 12. bxc3 {[%emt 0:00:04]} Nc6 {[%emt 0:00:06]} 13. Re1 {[%emt 0:04:55]} Re8 {[%emt 0:00:31]} 14. Bf4 {[%emt 0:01:23]} dxc4 {[%emt 0:00:39]} 15. Bxc4 {[%emt 0:00:12]} Bd6 {[%emt 0:00:22]} 16. Qd2 {[%emt 0:08:47]} Qd7 {[%emt 0:08:07]} 17. Bxd6 {[%emt 0:11:10]} cxd6 {[%emt 0:24:45]} 18. Nh4 {[%emt 0:01:44]} Be4 {[%emt 0:19:16]} 19. f3 {[%emt 0:00:54]} Bg6 {[%emt 0:00:17]} 20. Nxg6 {[%emt 0:03:51]} hxg6 {[%emt 0:00:03]} 21. Qg5 {[%emt 0:01:52]} Rxe1+ {[%emt 0:19:05]} 22. Rxe1 {[%emt 0:00:25]} Re8 {[%emt 0:01:35]} 23. Re4 {[%emt 0:03:06]} Rxe4 {[%emt 0:08:38]} 24. fxe4 {[%emt 0:00:07]} Nd8 {[%emt 0:05:39]} 25. h4 {[%emt 0:07:16]} Qc7 {[%emt 0:01:47]} 26. Bd5 {[%emt 0:04:05]} Kh7 {[%emt 0:02:01]} 27. Kh2 {[%emt 0:07:03]} Qd7 {[%emt 0:03:13]} 28. Qf4 {[%emt 0:14:37]} Qe7 {[%emt 0:01:37]} 29. Kh3 {[%emt 0:02:20]} Qd7+ {[%emt 0:01:49]} 30. g4 {[%emt 0:07:10]} Qc7 {[%emt 0:00:14]} 31. Qf3 {[%emt 0:02:25]} Ne6 {[%emt 0:00:58]} 32. g5 {[%emt 0:01:28]} Qc8 {[%emt 0:01:09]} 33. Kg3 {[%emt 0:02:36]} Qc7 {[%emt 0:00:05]} 34. Bxe6 {[%emt 0:11:57]} fxe6 {[%emt 0:00:02]} 35. h5 {[%emt 0:01:21]} gxh5 {[%emt 0:00:45]} 36. Qxh5+ {[%emt 0:00:04]} Kg8 {[%emt 0:00:04]} 37. Qe8+ {[%emt 0:02:29]} Kh7 {[%emt 0:00:01]} 38. Qh5+ {[%emt 0:00:33]} Kg8 {[%emt 0:00:01]} 39. Qf3 {[%emt 0:00:17]} Qe7 {[%emt 0:00:05]} 40. Kg4 {[%emt 0:00:15]} Qe8 {[%emt 0:00:51]} 41. Qf4 {[%emt 0:01:11]} Qc6 {[%emt 0:01:44]} 42. g6 {[%emt 0:00:29]} Qe8 {[%emt 0:00:02]} 43. Qxd6 {[%emt 0:00:32]} Qxg6+ {[%emt 0:00:03]} 44. Kf3 {[%emt 0:00:12]} Qh5+ {[%emt 0:00:12]} 45. Ke3 {[%emt 0:00:15]} Qh3+ {[%emt 0:00:13]} 46. Kf2 {[%emt 0:01:11]} Qh4+ {[%emt 0:00:05]} 47. Kf3 {[%emt 0:00:18]} Qh1+ {[%emt 0:00:22]} 48. Ke3 {[%emt 0:00:10]} Qh3+ {[%emt 0:00:26]} 49. Kf2 {[%emt 0:00:12]} Qh4+ {[%emt 0:00:08]} 50. Kf3 {[%emt 0:00:28]} Qh1+ {[%emt 0:00:11]} 51. Ke3 {[%emt 0:00:06]} 1/2-1/2

[Event "Memorial Zita 2019"]
[Site "Prague"]
[Date "2019.06.24"]
[Round "4.4"]
[White "Semenova, Elena"]
[Black "Trickov, Vasil"]
[Result "1/2-1/2"]
[ECO "B53"]
[WhiteElo "2255"]
[BlackElo "2319"]
[Annotator "NA"]
[PlyCount "80"]
[EventDate "2019.06.23"]
[EventType "tourn"]
[EventCountry "CZE"]
[SourceTitle "playchess.com"]
[Source "ChessBase"]
[SourceQuality "1"]
[TimeControl "5400+30"]

1. e4 {[%emt 0:00:00]} c5 {[%emt 0:15:35]} 2. Nf3 {[%emt 0:00:00]} d6 {[%emt 0:00:31]} 3. d4 {[%emt 0:00:00]} Nf6 {[%emt 0:00:21]} 4. Bb5+ {[%emt 0:00:07]} Bd7 {[%emt 0:01:34]} 5. Bxd7+ {[%emt 0:00:14]} Qxd7 {[%emt 0:00:48]} 6. dxc5 {[%emt 0:00:23]} Nxe4 {[%emt 0:02:59]} 7. cxd6 {[%emt 0:00:14]} Nc6 {[%emt 0:07:20]} 8. dxe7 {[%emt 0:00:54]} Qxd1+ {[%emt 0:01:03]} 9. Kxd1 {[%emt 0:00:08]} Bxe7 {[%emt 0:00:48]} 10. Be3 {[%emt 0:00:08]} f5 {[%emt 0:02:20]} 11. Nbd2 {[%emt 0:02:23]} O-O-O {[%emt 0:02:59]} 12. c3 {[%emt 0:16:36]} g5 {[%emt 0:26:16]} 13. Kc2 {[%emt 0:01:23]} g4 {[%emt 0:06:03]} 14. Nd4 {[%emt 0:05:03]} Nxd2 {[%emt 0:15:54]} 15. Nxc6 {[%emt 0:00:46]} bxc6 {[%emt 0:00:19]} 16. Bxd2 {[%emt 0:00:06]} Bc5 {[%emt 0:00:38]} 17. Rhf1 {[%emt 0:15:55]} h5 {[%emt 0:03:58]} 18. Rae1 {[%emt 0:01:35]} Bd6 {[%emt 0:01:48]} 19. Re6 {[%emt 0:04:37]} Kd7 {[%emt 0:03:19]} 20. Rfe1 {[%emt 0:03:23]} Bxh2 {[%emt 0:01:00]} 21. Re7+ {[%emt 0:00:47]} Kc8 {[%emt 0:00:06]} 22. g3 {[%emt 0:02:00]} h4 {[%emt 0:00:05]} 23. Bf4 {[%emt 0:04:49]} Rd7 {[%emt 0:00:58]} 24. Rxd7 {[%emt 0:02:28]} Kxd7 {[%emt 0:00:03]} 25. Rh1 {[%emt 0:03:21]} hxg3 {[%emt 0:01:49]} 26. fxg3 {[%emt 0:11:10]} Rh3 {[%emt 0:01:03]} 27. Kd3 {[%emt 0:00:21]} Ke6 {[%emt 0:02:04]} 28. Ke2 {[%emt 0:03:52]} Bxg3 {[%emt 0:00:33]} 29. Rxh3 {[%emt 0:00:22]} Bxf4 {[%emt 0:00:06]} 30. Rh7 {[%emt 0:00:20]} Bd6 {[%emt 0:00:55]} 31. Rxa7 {[%emt 0:04:26]} f4 {[%emt 0:00:06]} 32. Ra5 {[%emt 0:04:11]} c5 {[%emt 0:01:27]} 33. Ra6 {[%emt 0:05:03]} Kd5 {[%emt 0:00:41]} 34. a4 {[%emt 0:04:36]} c4 {[%emt 0:00:14]} 35. a5 {[%emt 0:01:47]} f3+ {[%emt 0:00:49]} 36. Kf2 {[%emt 0:00:21]} Bc5+ {[%emt 0:00:16]} 37. Kg3 {[%emt 0:00:07]} Bd6+ {[%emt 0:00:09]} 38. Kf2 {[%emt 0:00:29]} Bc5+ {[%emt 0:00:02]} 39. Kg3 {[%emt 0:00:13]} Bd6+ {[%emt 0:00:39]} 40. Kf2 {[%emt 0:00:15]} Bc5+ {[%emt 0:00:31]} 1/2-1/2

[Event "Memorial Zita 2019"]
[Site "Prague"]
[Date "2019.06.24"]
[Round "4.5"]
[White "Pribylova, Sofie"]
[Black "Neckar, Lubomir"]
[Result "0-1"]
[ECO "B02"]
[WhiteElo "2069"]
[BlackElo "2285"]
[Annotator "NA"]
[PlyCount "82"]
[EventDate "2019.06.23"]
[EventType "tourn"]
[EventCountry "CZE"]
[SourceTitle "playchess.com"]
[Source "ChessBase"]
[SourceQuality "1"]
[TimeControl "5400+30"]

1. e4 {[%emt 0:00:00]} Nf6 {[%emt 0:00:00]} 2. e5 {[%emt 0:00:00]} Nd5 {[%emt 0:00:00]} 3. c4 {[%emt 0:00:00]} Nb6 {[%emt 0:00:00]} 4. a4 {[%emt 1:32:00]} d6 {[%emt 0:11:01]} 5. a5 {[%emt 0:00:00]} N6d7 {[%emt 0:00:05]} 6. exd6 {[%emt 0:00:00]} cxd6 {[%emt 0:00:17]} 7. d4 {[%emt 0:00:00]} g6 {[%emt 0:02:51]} 8. Nf3 {[%emt 0:00:00]} Bg7 {[%emt 0:00:13]} 9. Nc3 {[%emt 0:00:00]} O-O {[%emt 0:21:09]} 10. Ra3 {[%emt 0:00:00]} e5 {[%emt 0:09:33]} 11. Be2 {[%emt 0:00:00]} Nc6 {[%emt 0:11:49]} 12. dxe5 {[%emt 0:00:00]} dxe5 {[%emt 0:01:20]} 13. Bg5 {[%emt 0:00:00]} f6 {[%emt 0:04:03]} 14. Be3 {[%emt 0:00:00]} Kh8 {[%emt 0:01:50]} 15. O-O {[%emt 0:00:00]} f5 {[%emt 0:16:56]} 16. Bg5 {[%emt 0:00:00]} Qe8 {[%emt 0:00:51]} 17. Nd5 {[%emt 0:00:00]} Rb8 {[%emt 0:01:38]} 18. b4 {[%emt 0:00:00]} e4 {[%emt 0:02:38]} 19. Ne1 {[%emt 0:00:00]} Nde5 {[%emt 0:02:16]} 20. b5 {[%emt 0:00:00]} Nd4 {[%emt 0:01:12]} 21. Be7 {[%emt 0:00:00]} Be6 {[%emt 0:01:10]} 22. Bxf8 {[%emt 0:00:00]} Qxf8 {[%emt 0:00:06]} 23. Ra2 {[%emt 0:00:00]} Qc5 {[%emt 0:00:26]} 24. Rd2 {[%emt 0:00:00]} Nxe2+ {[%emt 0:03:39]} 25. Rxe2 {[%emt 0:00:00]} Nxc4 {[%emt 0:00:14]} 26. Nf4 {[%emt 0:00:00]} Bg8 {[%emt 0:00:17]} 27. Nc2 {[%emt 0:00:00]} Qxb5 {[%emt 0:03:42]} 28. Nd4 {[%emt 0:00:00]} Qe5 {[%emt 0:00:38]} 29. Nfe6 {[%emt 0:00:00]} Bxe6 {[%emt 0:00:14]} 30. Nxe6 {[%emt 0:00:03]} Qxe6 {[%emt 0:00:14]} 31. Qa4 {[%emt 0:00:36]} Qc6 {[%emt 0:01:39]} 32. Qb4 {[%emt 0:00:56]} Ne5 {[%emt 0:00:27]} 33. h4 {[%emt 0:03:02]} h5 {[%emt 0:00:14]} 34. Qd2 {[%emt 0:01:45]} Nd3 {[%emt 0:00:46]} 35. f3 {[%emt 0:00:22]} Rd8 {[%emt 0:01:22]} 36. Qg5 {[%emt 0:00:57]} Re8 {[%emt 0:01:07]} 37. fxe4 {[%emt 0:00:46]} fxe4 {[%emt 0:00:30]} 38. Rf7 {[%emt 0:02:28]} Qc5+ {[%emt 0:00:26]} 39. Qxc5 {[%emt 0:02:41]} Nxc5 {[%emt 0:00:02]} 40. Rc7 {[%emt 0:00:17]} Be5 {[%emt 0:00:23]} 41. Rd7 {[%emt 0:00:19]} Nxd7 {[%emt 0:00:19]} 0-1

[Event "Memorial Zita 2019"]
[Site "Prague"]
[Date "2019.06.25"]
[Round "5.1"]
[White "Neckar, Lubomir"]
[Black "Netusil, Miloslav"]
[Result "1/2-1/2"]
[ECO "A11"]
[WhiteElo "2285"]
[BlackElo "2189"]
[Annotator "NA"]
[PlyCount "117"]
[EventDate "2019.06.23"]
[EventType "tourn"]
[EventCountry "CZE"]
[SourceTitle "playchess.com"]
[Source "ChessBase"]
[SourceQuality "1"]
[TimeControl "5400+30"]

1. Nf3 {[%emt 0:00:00]} d5 {[%emt 0:09:41]} 2. g3 {[%emt 0:00:00]} Bg4 {[%emt 0:00:25]} 3. Bg2 {[%emt 0:00:06]} Nd7 {[%emt 0:00:06]} 4. c4 {[%emt 0:00:13]} c6 {[%emt 0:00:05]} 5. cxd5 {[%emt 0:03:48]} cxd5 {[%emt 0:00:49]} 6. Nc3 {[%emt 0:02:21]} e6 {[%emt 0:00:36]} 7. Qa4 {[%emt 0:00:12]} Bxf3 {[%emt 0:03:17]} 8. Bxf3 {[%emt 0:00:31]} Ngf6 {[%emt 0:00:30]} 9. e4 {[%emt 0:01:20]} dxe4 {[%emt 0:05:11]} 10. Nxe4 {[%emt 0:01:08]} Nxe4 {[%emt 0:00:07]} 11. Bxe4 {[%emt 0:00:15]} Be7 {[%emt 0:00:08]} 12. Bxb7 {[%emt 0:19:48]} O-O {[%emt 0:02:31]} 13. Qc2 {[%emt 0:02:49]} Nc5 {[%emt 0:01:24]} 14. Bxa8 {[%emt 0:17:14]} Nd3+ {[%emt 0:01:34]} 15. Ke2 {[%emt 0:00:11]} Qxa8 {[%emt 0:00:11]} 16. Qxd3 {[%emt 0:00:12]} Qxh1 {[%emt 0:00:10]} 17. b3 {[%emt 0:00:05]} Qxh2 {[%emt 0:02:40]} 18. Bb2 {[%emt 0:00:16]} Rd8 {[%emt 0:06:38]} 19. Qf3 {[%emt 0:01:31]} Qh6 {[%emt 0:00:29]} 20. Bc3 {[%emt 0:06:19]} e5 {[%emt 0:01:58]} 21. Kf1 {[%emt 0:01:47]} Qh3+ {[%emt 0:02:19]} 22. Kg1 {[%emt 0:01:30]} f6 {[%emt 0:00:26]} 23. b4 {[%emt 0:02:54]} Qe6 {[%emt 0:02:15]} 24. Qe4 {[%emt 0:06:21]} Rd5 {[%emt 0:01:04]} 25. a4 {[%emt 0:05:28]} f5 {[%emt 0:07:04]} 26. Qe3 {[%emt 0:00:55]} a6 {[%emt 0:10:05]} 27. Re1 {[%emt 0:02:17]} Bf6 {[%emt 0:02:44]} 28. Rb1 {[%emt 0:16:57]} Qc6 {[%emt 0:08:22]} 29. Qa7 {[%emt 0:02:35]} f4 {[%emt 0:02:09]} 30. b5 {[%emt 0:01:02]} axb5 {[%emt 0:01:27]} 31. axb5 {[%emt 0:02:39]} Rxb5 {[%emt 0:03:02]} 32. Rxb5 {[%emt 0:00:02]} Qxb5 {[%emt 0:00:12]} 33. gxf4 {[%emt 0:00:03]} exf4 {[%emt 0:02:43]} 34. Bxf6 {[%emt 0:00:07]} gxf6 {[%emt 0:00:09]} 35. Qa8+ {[%emt 0:03:34]} Kg7 {[%emt 0:01:37]} 36. Qe4 {[%emt 0:00:28]} Qe5 {[%emt 0:00:43]} 37. Qb7+ {[%emt 0:00:34]} Kg6 {[%emt 0:00:19]} 38. Kg2 {[%emt 0:00:36]} Qd4 {[%emt 0:01:09]} 39. Kf3 {[%emt 0:00:27]} Qxd2 {[%emt 0:01:21]} 40. Qe4+ {[%emt 0:00:07]} Kg5 {[%emt 0:00:10]} 41. Qxh7 {[%emt 0:00:17]} Qd1+ {[%emt 0:00:56]} 42. Kg2 {[%emt 0:00:27]} Qh5 {[%emt 0:03:35]} 43. Qg7+ {[%emt 0:00:47]} Qg6 {[%emt 0:00:09]} 44. Qb7 {[%emt 0:00:14]} Kh4+ {[%emt 0:00:23]} 45. Kf1 {[%emt 0:00:21]} Qd3+ {[%emt 0:00:28]} 46. Kg2 {[%emt 0:01:16]} Qh3+ {[%emt 0:01:20]} 47. Kg1 {[%emt 0:00:06]} Qg4+ {[%emt 0:00:08]} 48. Kh2 {[%emt 0:00:31]} f5 {[%emt 0:02:09]} 49. Qe7+ {[%emt 0:01:00]} Qg5 {[%emt 0:00:09]} 50. Qxg5+ {[%emt 0:00:37]} Kxg5 {[%emt 0:00:06]} 51. Kg2 {[%emt 0:00:33]} Kf6 {[%emt 0:00:26]} 52. Kf3 {[%emt 0:00:17]} Ke5 {[%emt 0:00:05]} 53. Ke2 {[%emt 0:00:18]} Ke4 {[%emt 0:00:18]} 54. f3+ {[%emt 0:00:15]} Ke5 {[%emt 0:05:08]} 55. Ke1 {[%emt 0:00:26]} Kf6 {[%emt 0:01:47]} 56. Kf2 {[%emt 0:00:18]} Kf7 {[%emt 0:00:36]} 57. Kf1 {[%emt 0:00:03]} Ke7 {[%emt 0:00:33]} 58. Ke1 {[%emt 0:00:30]} Kd6 {[%emt 0:01:33]} 59. Kd2 {[%emt 0:00:23]} 1/2-1/2

[Event "Memorial Zita 2019"]
[Site "Prague"]
[Date "2019.06.25"]
[Round "5.2"]
[White "Trickov, Vasil"]
[Black "Pribylova, Sofie"]
[Result "1/2-1/2"]
[ECO "A31"]
[WhiteElo "2319"]
[BlackElo "2069"]
[Annotator "NA"]
[PlyCount "99"]
[EventDate "2019.06.23"]
[EventType "tourn"]
[EventCountry "CZE"]
[SourceTitle "playchess.com"]
[Source "ChessBase"]
[SourceQuality "1"]
[TimeControl "5400+30"]

1. d4 {[%emt 1:30:30]} Nf6 {[%emt 1:30:30]} 2. Nf3 {[%emt 0:00:30]} c5 {[%emt 0:00:30]} 3. c4 {[%emt 0:00:30]} cxd4 {[%emt 0:00:30]} 4. Nxd4 {[%emt 0:00:30]} e5 {[%emt 0:00:30]} 5. Nb5 {[%emt 0:00:30]} d5 {[%emt 0:00:30]} 6. cxd5 {[%emt 0:00:30]} Bc5 {[%emt 0:00:30]} 7. e3 {[%emt 0:00:30]} O-O {[%emt 0:00:30]} 8. N5c3 {[%emt 0:00:30]} e4 {[%emt 0:00:30]} 9. a3 {[%emt 0:00:30]} a5 {[%emt 0:00:30]} 10. Nd2 {[%emt 0:00:30]} Qe7 {[%emt 0:00:30]} 11. Qc2 {[%emt 0:00:30]} Bf5 {[%emt 0:00:30]} 12. Nb3 {[%emt 0:00:30]} Bd6 {[%emt 0:00:30]} 13. f4 {[%emt 0:00:30]} h6 {[%emt 0:00:30]} 14. Nd4 {[%emt 0:00:30]} Bg6 {[%emt 0:00:30]} 15. Be2 {[%emt 0:00:30]} Rd8 {[%emt 0:00:30]} 16. Ndb5 {[%emt 0:00:30]} Bc5 {[%emt 0:00:30]} 17. Qb3 {[%emt 0:00:30]} Nbd7 {[%emt 0:00:30]} 18. O-O {[%emt 0:00:30]} Nb6 {[%emt 0:00:30]} 19. Rd1 {[%emt 0:00:30]} a4 {[%emt 0:00:30]} 20. Qa2 {[%emt 0:00:30]} Rd7 {[%emt 0:00:30]} 21. b4 {[%emt 0:00:30]} axb3 {[%emt 0:00:30]} 22. Qxb3 {[%emt 0:00:30]} Rad8 {[%emt 0:00:30]} 23. d6 {[%emt 0:00:30]} Bxd6 {[%emt 0:00:30]} 24. Nxd6 {[%emt 0:00:30]} Rxd6 {[%emt 0:00:30]} 25. Rxd6 {[%emt 0:00:30]} Qxd6 {[%emt 0:00:30]} 26. Rb1 {[%emt 0:00:30]} Nbd5 {[%emt 0:00:30]} 27. Nxd5 {[%emt 0:00:30]} Nxd5 {[%emt 0:00:30]} 28. Bb2 {[%emt 0:00:30]} f6 {[%emt 0:00:30]} 29. Bc4 {[%emt 0:00:30]} Bf7 {[%emt 0:00:30]} 30. Rd1 {[%emt 0:00:30]} Qc6 {[%emt 0:00:30]} 31. Rd4 {[%emt 0:00:30]} f5 {[%emt 0:00:30]} 32. Rd1 {[%emt 0:00:30]} Be6 {[%emt 0:00:30]} 33. Be5 {[%emt 0:00:30]} Qc5 {[%emt 0:00:30]} 34. h3 {[%emt 0:00:30]} Rd7 {[%emt 0:00:30]} 35. Bd4 {[%emt 0:00:30]} Qc7 {[%emt 0:00:30]} 36. Bxg7 {[%emt 0:00:30]} Kxg7 {[%emt 0:00:30]} 37. Bxd5 {[%emt 0:00:30]} Bxd5 {[%emt 0:00:30]} 38. Rxd5 {[%emt 0:00:30]} Qc1+ {[%emt 0:00:30]} 39. Kf2 {[%emt 0:00:30]} Rc7 {[%emt 0:00:30]} 40. Kg3 {[%emt 0:00:30]} Kh7 {[%emt 0:00:30]} 41. Kh2 {[%emt 0:00:30]} Rg7 {[%emt 0:00:30]} 42. Rd1 {[%emt 0:00:30]} Qc6 {[%emt 0:00:30]} 43. Rd2 {[%emt 0:00:30]} Qg6 {[%emt 0:00:30]} 44. Kh1 {[%emt 0:00:30]} Qg3 {[%emt 0:00:30]} 45. Qc3 {[%emt 0:00:30]} Qe1+ {[%emt 0:00:30]} 46. Kh2 Qg3+ {[%emt 0:00:30]} 47. Kg1 {[%emt 0:01:00]} Qe1+ {[%emt 0:00:30]} 48. Kh2 {[%emt 0:00:30]} Qg3+ {[%emt 0:00:30]} 49. Kg1 {[%emt 0:00:30]} Qe1+ {[%emt 0:00:30]} 50. Kh2 {[%emt 0:00:30]} 1/2-1/2

[Event "Memorial Zita 2019"]
[Site "Prague"]
[Date "2019.06.25"]
[Round "5.3"]
[White "Fedorov, Evgueny"]
[Black "Semenova, Elena"]
[Result "1-0"]
[ECO "C88"]
[WhiteElo "2250"]
[BlackElo "2255"]
[Annotator "NA"]
[PlyCount "99"]
[EventDate "2019.06.23"]
[EventType "tourn"]
[EventCountry "CZE"]
[SourceTitle "playchess.com"]
[Source "ChessBase"]
[SourceQuality "1"]
[TimeControl "5400+30"]

1. e4 {[%emt 0:00:00]} e5 {[%emt 0:00:00]} 2. Nf3 {[%emt 0:00:00]} Nc6 {[%emt 0:00:00]} 3. Bb5 {[%emt 0:00:00]} a6 {[%emt 0:00:00]} 4. Ba4 {[%emt 0:00:00]} Nf6 {[%emt 0:00:01]} 5. O-O {[%emt 0:00:06]} Be7 {[%emt 0:00:12]} 6. Re1 {[%emt 0:00:06]} b5 {[%emt 0:00:05]} 7. Bb3 {[%emt 0:00:05]} O-O {[%emt 0:00:17]} 8. a4 {[%emt 0:00:18]} b4 {[%emt 0:00:50]} 9. a5 {[%emt 0:00:45]} d5 {[%emt 0:00:31]} 10. exd5 {[%emt 0:01:07]} e4 {[%emt 0:00:28]} 11. dxc6 {[%emt 0:00:41]} exf3 {[%emt 0:00:04]} 12. d4 {[%emt 0:01:44]} fxg2 {[%emt 0:00:21]} 13. Bf4 {[%emt 0:04:48]} Bg4 {[%emt 0:00:49]} 14. Qd3 {[%emt 0:05:59]} Nh5 {[%emt 0:01:51]} 15. Be5 {[%emt 0:17:00]} Bf6 {[%emt 0:02:59]} 16. Nd2 {[%emt 0:18:09]} Bxe5 {[%emt 0:17:49]} 17. Rxe5 {[%emt 0:00:45]} Nf4 {[%emt 0:05:28]} 18. Qe3 {[%emt 0:00:58]} Ng6 {[%emt 0:07:21]} 19. Rd5 {[%emt 0:09:00]} Qf6 {[%emt 0:02:45]} 20. Ne4 {[%emt 0:05:57]} Qf3 {[%emt 0:04:03]} 21. Ng5 {[%emt 0:20:02]} Qxe3 {[%emt 0:07:57]} 22. fxe3 {[%emt 0:00:02]} h6 {[%emt 0:00:22]} 23. h3 {[%emt 0:00:43]} Be2 {[%emt 0:18:44]} 24. Kf2 {[%emt 0:01:17]} Bb5 {[%emt 0:02:53]} 25. Nf3 {[%emt 0:02:27]} Bxc6 {[%emt 0:00:05]} 26. Rc5 {[%emt 0:00:20]} Bxf3 {[%emt 0:02:37]} 27. Kxf3 {[%emt 0:00:02]} Nh4+ {[%emt 0:00:04]} 28. Kg3 {[%emt 0:00:27]} g5 {[%emt 0:00:10]} 29. Rxc7 {[%emt 0:01:20]} Rae8 {[%emt 0:00:23]} 30. Kf2 {[%emt 0:00:50]} Kg7 {[%emt 0:11:26]} 31. Bd5 {[%emt 0:01:16]} Rc8 {[%emt 0:11:29]} 32. Rxc8 {[%emt 0:00:36]} Rxc8 {[%emt 0:00:00]} 33. Rc1 {[%emt 0:00:20]} Rb8 {[%emt 0:00:18]} 34. Bxg2 {[%emt 0:05:12]} Rb5 {[%emt 0:00:02]} 35. Bc6 {[%emt 0:01:22]} Rxa5 {[%emt 0:00:34]} 36. Ke2 {[%emt 0:03:34]} Kf6 {[%emt 0:03:07]} 37. c4 {[%emt 0:00:19]} Ra2 {[%emt 0:01:25]} 38. Rc2 {[%emt 0:00:30]} b3 {[%emt 0:00:47]} 39. Rd2 {[%emt 0:00:02]} Nf5 {[%emt 0:00:15]} 40. c5 {[%emt 0:00:17]} Ne7 {[%emt 0:00:37]} 41. Bb7 {[%emt 0:01:02]} Ra5 {[%emt 0:00:33]} 42. Kd3 {[%emt 0:00:37]} Ke6 {[%emt 0:00:20]} 43. Kc4 {[%emt 0:00:25]} Kd7 {[%emt 0:00:20]} 44. d5 {[%emt 0:00:54]} Ng6 {[%emt 0:00:19]} 45. d6 {[%emt 0:00:26]} Ne5+ {[%emt 0:00:01]} 46. Kd5 {[%emt 0:00:17]} f6 {[%emt 0:00:21]} 47. Rd1 {[%emt 0:00:18]} h5 {[%emt 0:00:18]} 48. Rf1 {[%emt 0:00:17]} Nd3 {[%emt 0:00:32]} 49. Rxf6 {[%emt 0:01:14]} Nxc5 {[%emt 0:01:23]} 50. Bc6+ {[%emt 0:00:10]} 1-0

[Event "Memorial Zita 2019"]
[Site "Prague"]
[Date "2019.06.25"]
[Round "5.4"]
[White "Kiss, Pal"]
[Black "Frolov, Artur"]
[Result "1/2-1/2"]
[ECO "E92"]
[WhiteElo "2278"]
[BlackElo "2453"]
[Annotator "ChessBase"]
[PlyCount "21"]
[EventDate "2019.06.23"]
[EventType "tourn"]
[EventCountry "CZE"]
[SourceTitle "playchess.com"]
[Source "ChessBase"]
[SourceQuality "1"]
[TimeControl "5400+30"]

1. d4 {[%emt 0:00:00]} Nf6 {[%emt 0:00:00]} 2. c4 {[%emt 0:00:00]} g6 {[%emt 0:00:00]} 3. Nc3 {[%emt 0:00:17]} Bg7 {[%emt 0:00:00]} 4. e4 {[%emt 0:00:29]} d6 {[%emt 0:00:00]} 5. Nf3 {[%emt 0:00:28]} O-O {[%emt 0:00:04]} 6. Be2 {[%emt 0:00:27]} e5 {[%emt 0:00:05]} 7. dxe5 {[%emt 0:03:01]} dxe5 {[%emt 0:00:16]} 8. Qxd8 {[%emt 0:00:09]} Rxd8 {[%emt 0:00:05]} 9. Nd5 {[%emt 0:00:57]} Nxd5 {[%emt 0:04:50]} 10. cxd5 {[%emt 0:00:27]} c6 {[%emt 0:00:54]} 11. Bc4 {[%emt 0:00:50]} 1/2-1/2

[Event "Memorial Zita 2019"]
[Site "Prague"]
[Date "2019.06.25"]
[Round "5.5"]
[White "Novy, Filip"]
[Black "Vokoun, Jan"]
[Result "1-0"]
[ECO "C41"]
[WhiteElo "2170"]
[BlackElo "2072"]
[Annotator "NA"]
[PlyCount "57"]
[EventDate "2019.06.23"]
[EventType "tourn"]
[EventCountry "CZE"]
[SourceTitle "playchess.com"]
[Source "ChessBase"]
[SourceQuality "1"]
[TimeControl "5400+30"]

1. e4 {[%emt 0:07:30]} d6 {[%emt 0:00:00]} 2. d4 {[%emt 0:00:13]} Nf6 {[%emt 0:00:00]} 3. Nc3 {[%emt 0:00:04]} e5 {[%emt 0:00:00]} 4. Nf3 {[%emt 0:01:10]} Nbd7 {[%emt 0:00:02]} 5. g4 {[%emt 0:00:05]} Nxg4 {[%emt 0:18:27]} 6. Rg1 {[%emt 0:00:07]} exd4 {[%emt 0:03:11]} 7. Nxd4 {[%emt 0:01:32]} Nde5 {[%emt 0:03:33]} 8. h3 {[%emt 0:00:26]} Nf6 {[%emt 0:00:14]} 9. f4 {[%emt 0:00:19]} Ned7 {[%emt 0:11:48]} 10. Qe2 {[%emt 0:01:37]} Nc5 {[%emt 0:05:03]} 11. Bd2 {[%emt 0:01:31]} c6 {[%emt 0:06:27]} 12. O-O-O {[%emt 0:00:32]} Qc7 {[%emt 0:02:36]} 13. e5 {[%emt 0:03:28]} dxe5 {[%emt 0:01:52]} 14. fxe5 {[%emt 0:01:08]} Nd5 {[%emt 0:00:14]} 15. Nxd5 {[%emt 0:00:41]} cxd5 {[%emt 0:00:02]} 16. Nb5 {[%emt 0:00:35]} Qc6 {[%emt 0:03:40]} 17. Bg2 {[%emt 0:03:13]} Be6 {[%emt 0:05:51]} 18. Ba5 {[%emt 0:08:40]} b6 {[%emt 0:02:19]} 19. Rxd5 {[%emt 0:00:40]} Bxd5 {[%emt 0:03:59]} 20. Bxd5 {[%emt 0:00:09]} Qc8 {[%emt 0:10:57]} 21. Qf3 {[%emt 0:03:15]} Nd3+ {[%emt 0:16:34]} 22. Qxd3 {[%emt 0:07:15]} Qc5 {[%emt 0:01:26]} 23. Rd1 {[%emt 0:11:14]} O-O-O {[%emt 0:01:41]} 24. Be6+ {[%emt 0:01:28]} fxe6 {[%emt 0:00:29]} 25. Qxd8+ {[%emt 0:00:10]} Kb7 {[%emt 0:00:00]} 26. Rd7+ {[%emt 0:00:43]} Ka6 {[%emt 0:00:09]} 27. Rxa7+ {[%emt 0:00:41]} Kxb5 {[%emt 0:00:03]} 28. Qd7+ {[%emt 0:00:25]} Qc6 {[%emt 0:00:14]} 29. a4+ {[%emt 0:00:37]} 1-0